[Event "Late-Titled-Tuesday-Blitz-November-28-2023"]
[Site "Chess.com"]
[Date "2023.11.28"]
[Round "3"]
[White "YellowJacek"]
[Black "Alimpic"]
[Result "0-1"]
[WhiteElo "2349"]
[BlackElo "2513"]
[TimeControl "180+1"]
[EndTime "14:28:09 PST"]
[Termination "Alimpic won by resignation"]

1. e4 {[%clk 0:02:55.5]} 1... g6 {[%clk 0:02:59.8]} 2. d4 {[%clk 0:02:54.9]}
2... c6 {[%clk 0:03:00.3]} 3. Nf3 {[%clk 0:02:55.1]} 3... d5 {[%clk 0:03:00.2]}
4. exd5 {[%clk 0:02:53.7]} 4... cxd5 {[%clk 0:03:00.2]} 5. c3 {[%clk 0:02:53.4]}
5... Nc6 {[%clk 0:02:59.8]} 6. Bd3 {[%clk 0:02:51.3]} 6... Bf5 {[%clk
0:02:55.5]} 7. Bxf5 {[%clk 0:02:48.9]} 7... gxf5 {[%clk 0:02:56.4]} 8. O-O
{[%clk 0:02:49.1]} 8... Nf6 {[%clk 0:02:55.9]} 9. Bf4 {[%clk 0:02:46.6]} 9... e6
{[%clk 0:02:55.7]} 10. Ne5 {[%clk 0:02:44.8]} 10... Bd6 {[%clk 0:02:50.7]} 11.
Qe2 {[%clk 0:02:28.7]} 11... Qc7 {[%clk 0:02:40]} 12. Nd2 {[%clk 0:02:22.6]}
12... Ne4 {[%clk 0:02:27.3]} 13. Nxe4 {[%clk 0:02:15.3]} 13... fxe4 {[%clk
0:02:26.6]} 14. f3 {[%clk 0:01:51.1]} 14... Nxe5 {[%clk 0:01:38.2]} 15. Bxe5
{[%clk 0:01:40.3]} 15... Bxe5 {[%clk 0:01:39.1]} 16. dxe5 {[%clk 0:01:38.8]}
16... Qxe5 {[%clk 0:01:16.9]} 17. Qb5+ {[%clk 0:01:33.1]} 17... Kf8 {[%clk
0:01:17.1]} 18. fxe4 {[%clk 0:01:25]} 18... Re8 {[%clk 0:00:55.5]} 19. exd5
{[%clk 0:01:16]} 19... Qxd5 {[%clk 0:00:51.9]} 20. Qxd5 {[%clk 0:01:07.2]} 20...
exd5 {[%clk 0:00:52.8]} 21. Rad1 {[%clk 0:01:07.2]} 21... Re5 {[%clk 0:00:41.2]}
22. Rf2 {[%clk 0:00:56.1]} 22... Ke7 {[%clk 0:00:40]} 23. Rfd2 {[%clk
0:00:50.3]} 23... Ke6 {[%clk 0:00:39.2]} 24. c4 {[%clk 0:00:47.6]} 24... dxc4
{[%clk 0:00:23.2]} 25. Rd6+ {[%clk 0:00:48.5]} 25... Kf5 {[%clk 0:00:18.9]} 26.
Rd7 {[%clk 0:00:46.5]} 26... Rb5 {[%clk 0:00:17.2]} 27. Rxf7+ {[%clk 0:00:44.1]}
27... Kg6 {[%clk 0:00:14.5]} 28. Rf2 {[%clk 0:00:42.6]} 28... Re8 {[%clk
0:00:11.1]} 29. h3 {[%clk 0:00:39.7]} 29... h5 {[%clk 0:00:10.4]} 30. Rd4 {[%clk
0:00:39.2]} 30... Re1+ {[%clk 0:00:09.4]} 31. Kh2 {[%clk 0:00:38.9]} 31... Rb1
{[%clk 0:00:09.3]} 32. Rxc4 {[%clk 0:00:37.6]} 32... R1xb2 {[%clk 0:00:09.3]}
33. Rxb2 {[%clk 0:00:31]} 33... Rxb2 {[%clk 0:00:10.2]} 34. a4 {[%clk
0:00:31.7]} 34... Ra2 {[%clk 0:00:04.9]} 35. Kg3 {[%clk 0:00:31.5]} 35... Kg5
{[%clk 0:00:03.8]} 36. Rc5+ {[%clk 0:00:30.2]} 36... Kg6 {[%clk 0:00:04.3]} 37.
a5 {[%clk 0:00:30.7]} 37... Ra4 {[%clk 0:00:04.1]} 38. Rb5 {[%clk 0:00:30.1]}
38... Kh6 {[%clk 0:00:03.8]} 39. Rxb7 {[%clk 0:00:28.9]} 39... Rxa5 {[%clk
0:00:04.1]} 40. Rc7 {[%clk 0:00:28.9]} 40... Ra4 {[%clk 0:00:04.1]} 41. Kf3
{[%clk 0:00:26.6]} 41... h4 {[%clk 0:00:04]} 42. Rc5 {[%clk 0:00:23.4]} 42...
Kg6 {[%clk 0:00:04.7]} 43. Kf2 {[%clk 0:00:22.3]} 43... Kf6 {[%clk 0:00:05]} 44.
Kf3 {[%clk 0:00:22.8]} 44... Ke6 {[%clk 0:00:05.6]} 45. Rg5 {[%clk 0:00:22.8]}
45... a5 {[%clk 0:00:05.6]} 46. Rg6+ {[%clk 0:00:21]} 46... Kd5 {[%clk
0:00:04.9]} 47. g4 {[%clk 0:00:20.8]} 47... hxg3 {[%clk 0:00:04.6]} 48. Kxg3
{[%clk 0:00:20.9]} 48... Ra1 {[%clk 0:00:03]} 49. h4 {[%clk 0:00:20.7]} 49...
Rg1+ {[%clk 0:00:02.7]} 50. Kf4 {[%clk 0:00:20]} 50... Rxg6 {[%clk 0:00:03.6]}
51. h5 {[%clk 0:00:20.5]} 51... Rg8 {[%clk 0:00:03.6]} 52. Kf5 {[%clk
0:00:20.5]} 52... a4 {[%clk 0:00:04]} 53. h6 {[%clk 0:00:21.4]} 53... Ra8 {[%clk
0:00:04.7]} 54. h7 {[%clk 0:00:22.3]} 54... a3 {[%clk 0:00:05.6]} 55. Kg6 {[%clk
0:00:23.2]} 55... a2 {[%clk 0:00:05.9]} 56. Kg7 {[%clk 0:00:24.1]} 56... a1=Q+
{[%clk 0:00:05.3]} 0-1

[Event "Late-Titled-Tuesday-Blitz-November-28-2023"]
[Site "Chess.com"]
[Date "2023.11.28"]
[Round "3"]
[White "Alohamora11"]
[Black "Zampronha1971"]
[Result "0-1"]
[WhiteElo "2564"]
[BlackElo "2384"]
[TimeControl "180+1"]
[EndTime "14:28:15 PST"]
[Termination "Zampronha1971 won by resignation"]

1. e4 {[%clk 0:03:00.9]} 1... c5 {[%clk 0:02:58.6]} 2. Nf3 {[%clk 0:03:01]} 2...
e6 {[%clk 0:02:59.2]} 3. d4 {[%clk 0:03:00.8]} 3... cxd4 {[%clk 0:03:00.1]} 4.
Nxd4 {[%clk 0:03:01.7]} 4... Nc6 {[%clk 0:03:00.1]} 5. Nb5 {[%clk 0:02:59.4]}
5... d6 {[%clk 0:02:57.7]} 6. Be2 {[%clk 0:02:47]} 6... a6 {[%clk 0:02:56.5]} 7.
N5c3 {[%clk 0:02:46.3]} 7... Nf6 {[%clk 0:02:56.7]} 8. Bg5 {[%clk 0:02:46.1]}
8... Be7 {[%clk 0:02:54.9]} 9. Nd2 {[%clk 0:02:46.7]} 9... O-O {[%clk 0:02:53]}
10. O-O {[%clk 0:02:45.3]} 10... b5 {[%clk 0:02:53.5]} 11. a3 {[%clk 0:02:31.1]}
11... Bb7 {[%clk 0:02:52.8]} 12. Nb3 {[%clk 0:02:21.4]} 12... Rc8 {[%clk
0:02:52.5]} 13. Kh1 {[%clk 0:02:16.6]} 13... Ne5 {[%clk 0:02:51.9]} 14. f3
{[%clk 0:01:52.5]} 14... Nc4 {[%clk 0:02:50.5]} 15. Qc1 {[%clk 0:01:46.8]} 15...
Qc7 {[%clk 0:02:44.6]} 16. Nd1 {[%clk 0:01:31]} 16... d5 {[%clk 0:02:29]} 17.
exd5 {[%clk 0:01:19]} 17... Nxd5 {[%clk 0:02:29]} 18. Bxe7 {[%clk 0:01:19.9]}
18... Qxe7 {[%clk 0:02:27.1]} 19. Bxc4 {[%clk 0:01:12.4]} 19... bxc4 {[%clk
0:02:25.6]} 20. Nd4 {[%clk 0:01:12.3]} 20... c3 {[%clk 0:02:20.6]} 21. bxc3
{[%clk 0:01:10.7]} 21... Nxc3 {[%clk 0:02:19.2]} 22. Nxc3 {[%clk 0:01:11.1]}
22... Rxc3 {[%clk 0:02:18.4]} 23. Qd2 {[%clk 0:01:08.8]} 23... Rfc8 {[%clk
0:02:15.4]} 24. Rab1 {[%clk 0:01:02.4]} 24... Bd5 {[%clk 0:02:13.2]} 25. a4
{[%clk 0:00:50.2]} 25... Qa3 {[%clk 0:02:02.3]} 26. Ra1 {[%clk 0:00:44.8]} 26...
Qc5 {[%clk 0:01:59.8]} 27. Rfd1 {[%clk 0:00:41.8]} 27... g6 {[%clk 0:01:57.3]}
28. Rab1 {[%clk 0:00:40.5]} 28... Ra3 {[%clk 0:01:47]} 29. Qg5 {[%clk
0:00:21.1]} 29... Rxa4 {[%clk 0:01:30.7]} 30. Ne2 {[%clk 0:00:21.4]} 30... Rb4
{[%clk 0:00:56.9]} 31. Rxb4 {[%clk 0:00:17.3]} 31... Qxb4 {[%clk 0:00:57.8]} 32.
Ng3 {[%clk 0:00:17.9]} 32... Qc3 {[%clk 0:00:38.1]} 33. Nh5 {[%clk 0:00:12.9]}
33... Kh8 {[%clk 0:00:23.1]} 34. Nf4 {[%clk 0:00:08.7]} 34... Qxc2 {[%clk
0:00:14.6]} 35. Qf6+ {[%clk 0:00:07]} 35... Kg8 {[%clk 0:00:14.7]} 36. Re1
{[%clk 0:00:07.2]} 36... Qc3 {[%clk 0:00:14.1]} 37. Qxc3 {[%clk 0:00:04.6]}
37... Rxc3 {[%clk 0:00:14.1]} 38. h4 {[%clk 0:00:04.7]} 38... Ra3 {[%clk
0:00:14.1]} 39. Nxd5 {[%clk 0:00:04.9]} 39... exd5 {[%clk 0:00:13.8]} 40. Rd1
{[%clk 0:00:05.8]} 40... Ra5 {[%clk 0:00:13.7]} 41. Kh2 {[%clk 0:00:05.9]} 41...
f5 {[%clk 0:00:13.6]} 42. Kg3 {[%clk 0:00:06.1]} 42... Kf7 {[%clk 0:00:13.7]}
43. Kf4 {[%clk 0:00:06.7]} 43... Kf6 {[%clk 0:00:14.1]} 44. Kg3 {[%clk
0:00:06.5]} 44... h6 {[%clk 0:00:13.7]} 45. Rd2 {[%clk 0:00:04.8]} 45... Ke6
{[%clk 0:00:13.6]} 46. Re2+ {[%clk 0:00:04.7]} 46... Kd6 {[%clk 0:00:13.5]} 47.
Rb2 {[%clk 0:00:05.6]} 47... Ra1 {[%clk 0:00:13]} 48. Rb6+ {[%clk 0:00:05.7]}
48... Kc5 {[%clk 0:00:12.9]} 49. Rxg6 {[%clk 0:00:06.6]} 49... d4 {[%clk
0:00:13]} 50. Rf6 {[%clk 0:00:06.3]} 50... Kc4 {[%clk 0:00:12.3]} 51. Rxf5
{[%clk 0:00:06.6]} 51... d3 {[%clk 0:00:12.7]} 52. Rf6 {[%clk 0:00:06.1]} 52...
d2 {[%clk 0:00:11.6]} 53. Rc6+ {[%clk 0:00:04.5]} 53... Kb5 {[%clk 0:00:11.2]}
54. Rd6 {[%clk 0:00:03.4]} 54... d1=Q {[%clk 0:00:11.4]} 55. Rxd1 {[%clk
0:00:04.3]} 55... Rxd1 {[%clk 0:00:11.6]} 56. Kf4 {[%clk 0:00:05]} 56... a5
{[%clk 0:00:11.9]} 57. g4 {[%clk 0:00:05.9]} 57... a4 {[%clk 0:00:12.1]} 58. g5
{[%clk 0:00:06.8]} 58... hxg5+ {[%clk 0:00:11.9]} 59. hxg5 {[%clk 0:00:07.7]}
59... a3 {[%clk 0:00:12]} 60. g6 {[%clk 0:00:08.6]} 60... a2 {[%clk 0:00:12.1]}
61. g7 {[%clk 0:00:09.1]} 61... Rg1 {[%clk 0:00:11.9]} 0-1

[Event "Late-Titled-Tuesday-Blitz-November-28-2023"]
[Site "Chess.com"]
[Date "2023.11.28"]
[Round "3"]
[White "Mariia89"]
[Black "Kostukov_Alex"]
[Result "1-0"]
[WhiteElo "2165"]
[BlackElo "2369"]
[TimeControl "180+1"]
[EndTime "14:28:16 PST"]
[Termination "Mariia89 won on time"]

1. d4 {[%clk 0:02:59.1]} 1... g6 {[%clk 0:02:59.5]} 2. c4 {[%clk 0:02:58.8]}
2... Bg7 {[%clk 0:02:59.7]} 3. Nc3 {[%clk 0:02:59]} 3... d6 {[%clk 0:03:00.3]}
4. e4 {[%clk 0:02:59.2]} 4... e5 {[%clk 0:03:00.5]} 5. Nf3 {[%clk 0:02:59.1]}
5... exd4 {[%clk 0:03:00.2]} 6. Nxd4 {[%clk 0:02:59.7]} 6... Nc6 {[%clk
0:03:01.1]} 7. Be3 {[%clk 0:02:59.2]} 7... Nge7 {[%clk 0:03:01.2]} 8. Be2 {[%clk
0:02:59]} 8... O-O {[%clk 0:03:00.8]} 9. O-O {[%clk 0:02:59.1]} 9... f5 {[%clk
0:03:01]} 10. f3 {[%clk 0:02:52.1]} 10... fxe4 {[%clk 0:02:59.8]} 11. Nxe4
{[%clk 0:02:43.9]} 11... Nf5 {[%clk 0:02:59]} 12. Nxf5 {[%clk 0:02:38.9]} 12...
Bxf5 {[%clk 0:02:55.7]} 13. Nc3 {[%clk 0:02:32]} 13... Re8 {[%clk 0:02:51.9]}
14. Bf2 {[%clk 0:02:31]} 14... Qd7 {[%clk 0:02:44.1]} 15. Bd3 {[%clk 0:02:29.2]}
15... Bxd3 {[%clk 0:02:37.2]} 16. Qxd3 {[%clk 0:02:28.9]} 16... Ne5 {[%clk
0:02:36.2]} 17. Qd5+ {[%clk 0:02:27.6]} 17... Kh8 {[%clk 0:02:35.7]} 18. Rad1
{[%clk 0:02:12.2]} 18... b6 {[%clk 0:02:26.2]} 19. Ne4 {[%clk 0:01:43.8]} 19...
Qf7 {[%clk 0:02:08.4]} 20. Qxf7 {[%clk 0:01:35.2]} 20... Nxf7 {[%clk 0:02:08]}
21. b3 {[%clk 0:01:35.3]} 21... Re6 {[%clk 0:02:03.5]} 22. h4 {[%clk 0:01:25.8]}
22... h6 {[%clk 0:02:01.4]} 23. Rfe1 {[%clk 0:01:20.5]} 23... Rae8 {[%clk
0:01:55.5]} 24. Kh2 {[%clk 0:01:12.6]} 24... Be5+ {[%clk 0:01:51.9]} 25. g3
{[%clk 0:01:12.4]} 25... Kh7 {[%clk 0:01:42.6]} 26. Kg2 {[%clk 0:01:12.2]} 26...
a5 {[%clk 0:01:39.5]} 27. Re2 {[%clk 0:00:55.7]} 27... Bg7 {[%clk 0:01:14.4]}
28. Rde1 {[%clk 0:00:54.5]} 28... Kh8 {[%clk 0:01:14.4]} 29. Kf1 {[%clk
0:00:41.8]} 29... a4 {[%clk 0:01:06.1]} 30. Nxd6 {[%clk 0:00:32.4]} 30... Rxe2
{[%clk 0:00:50.1]} 31. Nxf7+ {[%clk 0:00:32.4]} 31... Kg8 {[%clk 0:00:50.1]} 32.
Nxh6+ {[%clk 0:00:21.2]} 32... Bxh6 {[%clk 0:00:48]} 33. Rxe2 {[%clk 0:00:21.6]}
33... Rd8 {[%clk 0:00:42.7]} 34. Be3 {[%clk 0:00:21]} 34... Bg7 {[%clk
0:00:39.3]} 35. Rd2 {[%clk 0:00:21.2]} 35... Re8 {[%clk 0:00:38.3]} 36. Kf2
{[%clk 0:00:21.4]} 36... a3 {[%clk 0:00:33.4]} 37. Rd7 {[%clk 0:00:20.8]} 37...
c5 {[%clk 0:00:31.6]} 38. Rd6 {[%clk 0:00:20.2]} 38... Kh7 {[%clk 0:00:19.8]}
39. Rxb6 {[%clk 0:00:18.1]} 39... Bb2 {[%clk 0:00:12.7]} 40. Ra6 {[%clk
0:00:17.8]} 40... Rd8 {[%clk 0:00:12.1]} 41. Bxc5 {[%clk 0:00:17.1]} 41... Rd2+
{[%clk 0:00:12]} 42. Ke3 {[%clk 0:00:16.9]} 42... Rg2 {[%clk 0:00:11.2]} 43. g4
{[%clk 0:00:15.4]} 43... Bc1+ {[%clk 0:00:10.7]} 44. Ke4 {[%clk 0:00:14.2]}
44... Re2+ {[%clk 0:00:10.7]} 45. Kd5 {[%clk 0:00:14.6]} 45... Rxa2 {[%clk
0:00:09]} 46. Ra7+ {[%clk 0:00:13.9]} 46... Kg8 {[%clk 0:00:08]} 47. Ke6 {[%clk
0:00:10.7]} 47... Re2+ {[%clk 0:00:07.6]} 48. Kf6 {[%clk 0:00:10.9]} 48... Bb2+
{[%clk 0:00:06.6]} 49. Kxg6 {[%clk 0:00:10.8]} 49... Re6+ {[%clk 0:00:03.4]} 50.
Kf5 {[%clk 0:00:10.5]} 50... Rf6+ {[%clk 0:00:02.5]} 51. Kg5 {[%clk 0:00:09.8]}
51... Rxf3 {[%clk 0:00:01.8]} 52. Bxa3 {[%clk 0:00:09.1]} 1-0

[Event "Late-Titled-Tuesday-Blitz-November-28-2023"]
[Site "Chess.com"]
[Date "2023.11.28"]
[Round "3"]
[White "jup1978"]
[Black "ameetghasi100"]
[Result "0-1"]
[WhiteElo "2527"]
[BlackElo "2816"]
[TimeControl "180+1"]
[EndTime "14:28:21 PST"]
[Termination "ameetghasi100 won on time"]

1. d4 {[%clk 0:03:00.9]} 1... g6 {[%clk 0:03:00.9]} 2. c4 {[%clk 0:03:00]} 2...
d6 {[%clk 0:03:01.8]} 3. Nf3 {[%clk 0:02:58.5]} 3... Nf6 {[%clk 0:03:02.7]} 4.
g3 {[%clk 0:02:58.1]} 4... Bg7 {[%clk 0:03:03.2]} 5. Bg2 {[%clk 0:02:58]} 5...
O-O {[%clk 0:03:04.1]} 6. Nc3 {[%clk 0:02:58.1]} 6... c6 {[%clk 0:03:05]} 7. O-O
{[%clk 0:02:57.2]} 7... Qb6 {[%clk 0:03:04.1]} 8. c5 {[%clk 0:02:55.1]} 8... Qd8
{[%clk 0:03:01.5]} 9. cxd6 {[%clk 0:02:50.3]} 9... exd6 {[%clk 0:03:02.4]} 10.
e4 {[%clk 0:02:47.4]} 10... Bg4 {[%clk 0:03:01.4]} 11. h3 {[%clk 0:02:47.1]}
11... Bxf3 {[%clk 0:03:01.7]} 12. Qxf3 {[%clk 0:02:46.4]} 12... Re8 {[%clk
0:03:02.6]} 13. Re1 {[%clk 0:02:45.4]} 13... Nbd7 {[%clk 0:03:03]} 14. Bg5
{[%clk 0:02:42.5]} 14... Qb6 {[%clk 0:03:01.6]} 15. e5 {[%clk 0:02:14.4]} 15...
dxe5 {[%clk 0:03:01]} 16. dxe5 {[%clk 0:02:15.3]} 16... Rxe5 {[%clk 0:02:48.6]}
17. Rxe5 {[%clk 0:02:04.9]} 17... Nxe5 {[%clk 0:02:49.5]} 18. Qe2 {[%clk
0:02:04.6]} 18... Re8 {[%clk 0:02:44.8]} 19. Bxf6 {[%clk 0:02:00.1]} 19... Bxf6
{[%clk 0:02:45.7]} 20. Re1 {[%clk 0:01:57.1]} 20... Re6 {[%clk 0:02:44]} 21. Rd1
{[%clk 0:01:36.4]} 21... Kg7 {[%clk 0:02:40.5]} 22. Ne4 {[%clk 0:01:25.6]} 22...
Qc7 {[%clk 0:02:26.7]} 23. Nxf6 {[%clk 0:01:24.3]} 23... Rxf6 {[%clk 0:02:26.4]}
24. b3 {[%clk 0:01:23.1]} 24... Re6 {[%clk 0:02:18.7]} 25. Qb2 {[%clk
0:01:18.7]} 25... f6 {[%clk 0:01:45.2]} 26. Qd4 {[%clk 0:01:18.1]} 26... a6
{[%clk 0:01:43.1]} 27. h4 {[%clk 0:01:11]} 27... Nf7 {[%clk 0:01:41]} 28. Qd7
{[%clk 0:01:08.3]} 28... Re7 {[%clk 0:01:40]} 29. Qxc7 {[%clk 0:00:59]} 29...
Rxc7 {[%clk 0:01:40.9]} 30. f4 {[%clk 0:00:55.3]} 30... Re7 {[%clk 0:01:29.8]}
31. Kf2 {[%clk 0:00:55.2]} 31... h5 {[%clk 0:01:25.4]} 32. Bh3 {[%clk
0:00:55.2]} 32... Nh6 {[%clk 0:01:23.8]} 33. Rd7 {[%clk 0:00:53.2]} 33... Rxd7
{[%clk 0:01:10]} 34. Bxd7 {[%clk 0:00:54.1]} 34... Nf5 {[%clk 0:01:09.4]} 35.
Bc8 {[%clk 0:00:43.3]} 35... Nd6 {[%clk 0:01:08.6]} 36. Be6 {[%clk 0:00:38.6]}
36... Kf8 {[%clk 0:01:07.6]} 37. Ke3 {[%clk 0:00:38.3]} 37... Ke7 {[%clk
0:01:08]} 38. Bh3 {[%clk 0:00:35.9]} 38... Nf5+ {[%clk 0:01:03.1]} 39. Kf2
{[%clk 0:00:29.4]} 39... Kd6 {[%clk 0:01:02.7]} 40. Bg2 {[%clk 0:00:27.1]} 40...
a5 {[%clk 0:01:01]} 41. Be4 {[%clk 0:00:19.5]} 41... Ne7 {[%clk 0:00:35.5]} 42.
Ke3 {[%clk 0:00:18.8]} 42... f5 {[%clk 0:00:31.7]} 43. Bf3 {[%clk 0:00:15.7]}
43... Nd5+ {[%clk 0:00:30.7]} 44. Kd4 {[%clk 0:00:14.6]} 44... Nc7 {[%clk
0:00:21.4]} 45. a4 {[%clk 0:00:12.8]} 45... Ne6+ {[%clk 0:00:20.4]} 46. Kc4
{[%clk 0:00:11.6]} 46... b6 {[%clk 0:00:17.6]} 47. b4 {[%clk 0:00:11.1]} 47...
axb4 {[%clk 0:00:18.5]} 48. Kxb4 {[%clk 0:00:11.6]} 48... Nd4 {[%clk 0:00:19]}
49. Bd1 {[%clk 0:00:09.7]} 49... Kd5 {[%clk 0:00:15.6]} 50. Kc3 {[%clk
0:00:09.6]} 50... Kc5 {[%clk 0:00:11.7]} 51. Kd3 {[%clk 0:00:05.3]} 51... Kd5
{[%clk 0:00:11.4]} 52. Kc3 {[%clk 0:00:05.7]} 52... Ke4 {[%clk 0:00:09.8]} 53.
Kc4 {[%clk 0:00:03.3]} 53... Ke3 {[%clk 0:00:09.8]} 54. a5 {[%clk 0:00:02.6]}
54... bxa5 {[%clk 0:00:09.9]} 55. Ba4 {[%clk 0:00:02]} 55... Ne2 {[%clk
0:00:08.3]} 56. Bxc6 {[%clk 0:00:01.5]} 56... Nxg3 {[%clk 0:00:08.8]} 57. Be8
{[%clk 0:00:02.2]} 57... Kxf4 {[%clk 0:00:08.9]} 58. Bxg6 {[%clk 0:00:02.7]}
58... Kg4 {[%clk 0:00:09.8]} 59. Kd3 {[%clk 0:00:01.9]} 59... a4 {[%clk
0:00:09.7]} 0-1

[Event "Late-Titled-Tuesday-Blitz-November-28-2023"]
[Site "Chess.com"]
[Date "2023.11.28"]
[Round "3"]
[White "Haykoooo0o"]
[Black "bazar-wokzal"]
[Result "1/2-1/2"]
[WhiteElo "2422"]
[BlackElo "2628"]
[TimeControl "180+1"]
[EndTime "14:28:24 PST"]
[Termination "Game drawn by agreement"]

1. d4 {[%clk 0:03:00.9]} 1... Nf6 {[%clk 0:02:58.6]} 2. Nf3 {[%clk 0:03:01]}
2... e6 {[%clk 0:02:58.3]} 3. e3 {[%clk 0:02:55.7]} 3... c5 {[%clk 0:02:57.3]}
4. Bd3 {[%clk 0:02:55.6]} 4... b6 {[%clk 0:02:55.6]} 5. c3 {[%clk 0:02:55.7]}
5... Bb7 {[%clk 0:02:55.3]} 6. Nbd2 {[%clk 0:02:56.2]} 6... Be7 {[%clk
0:02:54.7]} 7. O-O {[%clk 0:02:56.2]} 7... h6 {[%clk 0:02:51.9]} 8. Qe2 {[%clk
0:02:56.7]} 8... g5 {[%clk 0:02:52.1]} 9. e4 {[%clk 0:02:54.4]} 9... g4 {[%clk
0:02:50.2]} 10. Ne1 {[%clk 0:02:53.8]} 10... h5 {[%clk 0:02:49.8]} 11. a3 {[%clk
0:02:47.6]} 11... cxd4 {[%clk 0:02:49.9]} 12. cxd4 {[%clk 0:02:47.8]} 12... Nc6
{[%clk 0:02:50.4]} 13. Nc2 {[%clk 0:02:40.6]} 13... Qc7 {[%clk 0:02:50.4]} 14.
e5 {[%clk 0:02:24.4]} 14... Nd5 {[%clk 0:02:50]} 15. Ne4 {[%clk 0:02:23.9]}
15... O-O-O {[%clk 0:02:47.9]} 16. Be3 {[%clk 0:02:22.9]} 16... Kb8 {[%clk
0:02:47.6]} 17. Rac1 {[%clk 0:02:22.4]} 17... Rdg8 {[%clk 0:02:45.9]} 18. b4
{[%clk 0:02:09]} 18... f5 {[%clk 0:02:35.5]} 19. exf6 {[%clk 0:01:58.5]} 19...
Nxf6 {[%clk 0:02:35.7]} 20. Nxf6 {[%clk 0:01:57.1]} 20... Bxf6 {[%clk
0:02:35.7]} 21. d5 {[%clk 0:01:52]} 21... Ne5 {[%clk 0:02:20.8]} 22. Bf4 {[%clk
0:01:31.5]} 22... Nf3+ {[%clk 0:01:36.3]} 23. Qxf3 {[%clk 0:01:30.3]} 23... gxf3
{[%clk 0:01:36.7]} 24. Bxc7+ {[%clk 0:01:30.4]} 24... Kxc7 {[%clk 0:01:37.2]}
25. g3 {[%clk 0:01:24.8]} 25... Kb8 {[%clk 0:01:03.5]} 26. dxe6 {[%clk
0:01:18.1]} 26... dxe6 {[%clk 0:01:02]} 27. Rfe1 {[%clk 0:01:17.8]} 27... h4
{[%clk 0:01:01.7]} 28. Rxe6 {[%clk 0:00:45]} 28... Bb2 {[%clk 0:00:41.6]} 29.
Rb1 {[%clk 0:00:44.5]} 29... Bc3 {[%clk 0:00:40.9]} 30. Be4 {[%clk 0:00:40.6]}
30... hxg3 {[%clk 0:00:37.8]} 31. fxg3 {[%clk 0:00:38.4]} 31... Bc8 {[%clk
0:00:36.7]} 32. Rc6 {[%clk 0:00:32.2]} 32... f2+ {[%clk 0:00:27.6]} 33. Kg2
{[%clk 0:00:29.8]} 33... Be5 {[%clk 0:00:12.6]} 34. Re6 {[%clk 0:00:18.1]} 34...
Bc7 {[%clk 0:00:10.3]} 35. Re7 {[%clk 0:00:16.1]} 35... Bd6 {[%clk 0:00:09.7]}
36. Rh7 {[%clk 0:00:15.9]} 36... Rxh7 {[%clk 0:00:08.9]} 37. Bxh7 {[%clk
0:00:16.8]} 37... Bb7+ {[%clk 0:00:08.8]} 38. Kxf2 {[%clk 0:00:16]} 38... Rh8
{[%clk 0:00:09.5]} 39. Bd3 {[%clk 0:00:14.1]} 39... Rxh2+ {[%clk 0:00:10.1]} 40.
Ke3 {[%clk 0:00:14.8]} 40... Bxg3 {[%clk 0:00:10]} 41. Kd4 {[%clk 0:00:12.9]}
41... Bf2+ {[%clk 0:00:10.1]} 42. Kc3 {[%clk 0:00:12.9]} 42... Bh4 {[%clk
0:00:09.7]} 43. Rf1 {[%clk 0:00:12.1]} 43... Rf2 {[%clk 0:00:08.9]} 44. Rxf2
{[%clk 0:00:11.8]} 44... Bxf2 {[%clk 0:00:09.8]} 45. Bc4 {[%clk 0:00:11]} 45...
Bh4 {[%clk 0:00:09.5]} 46. Kb3 {[%clk 0:00:09.6]} 46... Bf6 {[%clk 0:00:10]} 47.
Bd3 {[%clk 0:00:10]} 47... Bd5+ {[%clk 0:00:10]} 48. Bc4 {[%clk 0:00:10.2]}
48... Be4 {[%clk 0:00:10.6]} 49. Ne3 {[%clk 0:00:10.2]} 49... Kc7 {[%clk
0:00:10.9]} 50. Nd5+ {[%clk 0:00:10]} 50... Bxd5 {[%clk 0:00:11.1]} 51. Bxd5
{[%clk 0:00:10.9]} 51... Kd6 {[%clk 0:00:11.4]} 52. Bc4 {[%clk 0:00:11.5]} 52...
Ke5 {[%clk 0:00:11]} 53. Bf1 {[%clk 0:00:11.9]} 53... Kd4 {[%clk 0:00:09.3]} 54.
Ka4 {[%clk 0:00:11.7]} 54... Kc3 {[%clk 0:00:09.2]} 55. Kb5 {[%clk 0:00:11.6]}
55... Kb3 {[%clk 0:00:09.5]} 56. a4 {[%clk 0:00:12]} 56... Bc3 {[%clk
0:00:09.3]} 57. Ka6 {[%clk 0:00:11.6]} 57... Kxa4 {[%clk 0:00:07.3]} 58. b5
{[%clk 0:00:11.4]} 58... Bd4 {[%clk 0:00:06.7]} 59. Kxa7 {[%clk 0:00:11.5]}
59... Kb4 {[%clk 0:00:07.2]} 60. Ka6 {[%clk 0:00:12.4]} 60... Kc5 {[%clk
0:00:07.8]} 61. Kb7 {[%clk 0:00:09]} 1/2-1/2